Cogmind - Beta 15 @@@ ROGUE MODE // 2025.09.11 @ 00:47:21 Player: chebyrekser Result: Destroyed by XX-UQB(E) with Overtuned Barrage Gun Performance ------------- Evolutions (1) 500 Regions Visited (6) 1200 Robots Destroyed (118) 590 Value Destroyed (2490) 2490 Prototype IDs (18) 360 Alien Tech Used (0) 0 Bonus (438) 438 TOTAL SCORE: 5578 Bonus ------- Follower Combat Kills 212 Registered with UFD 300 Friendly Fire -74 Cogmind --------- Core Integrity 0/400 Matter 300/300 Energy 309/310 System Corruption 0% Temperature Cool (19) Movement Treading (320) Ox2 Location -9/Scraptown Parts ------- > --- POWER (1) -------- Fission Core > --- PROPULSION (3) --- Improved Treads Medium Treads Compact Wheel > --- UTILITY (3) ------ Huge Storage Unit Seismic Detector Hardened Light Armor Plating > --- WEAPON (2) ------- Heavy Laser Rocket Launcher > --- INVENTORY (25) --- Improved Ion Engine Improved Ion Engine Improved Treads Improved Treads Improved Heat Sink Improved Heat Sink Large Matter Pod (150) Transport Network Coupler Hardened Light Armor Plating Hacking Suite Hacking Suite Authchip [Armor] Improved Medium Laser Improved Medium Laser Advanced Beam Cannon Improved Assault Rifle Gauss Cannon Plasma Cutter Katana Peak State ------------ > --- POWER ------------ Fission Core > --- PROPULSION ------- Improved Treads Improved Treads Compact Wheel > --- UTILITY ---------- Huge Storage Unit Scrapoid Pod > --- WEAPON ----------- Heavy Laser Gauss Cannon > --- INVENTORY -------- Improved Ion Engine Improved Ion Engine Improved Treads Improved Treads Medium Treads Improved Heat Sink Improved Heat Sink Large Matter Pod Transport Network Coupler Medium Armor Plating Hardened Light Armor Plating Hardened Light Armor Plating Hacking Suite Hacking Suite Authchip [Armor] Improved Medium Laser Improved Medium Laser Advanced Beam Cannon Improved Assault Rifle Rocket Launcher Rocket Launcher Plasma Cutter Katana [Rating: 36] Favorites ----------- Power Improved Ion Engine Engine Improved Ion Engine Power Core Fission Core Propulsion Light Treads Treads Light Treads Wheel Compact Wheel Flight Unit Improved Flight Unit Utility Huge Storage Unit Device Seismic Detector Storage Huge Storage Unit Protection Hardened Light Armor Plating Weapon Improved Medium Laser Energy Gun Improved Medium Laser Energy Cannon Advanced Beam Cannon Ballistic Gun Improved Assault Rifle Ballistic Cannon Improved Light Cannon Launcher Rocket Launcher Special Weapon Mining Laser Build | -11 -10 -10 -9 -9 -9 -9 ------- Run | Yrd Mat Min Mat Sto Rec Scr Slots Evolved 2 | . . . 2 . . . Power . | . . . . . . . Propulsion 1 | . . . 1 . . . Utility 1 | . . . 1 . . . Weapon . | . . . . . . . Parts Attached 73 | 7 12 2 27 11 4 10 Power 12 | 1 1 1 3 2 2 2 Engine 10 | 1 1 1 2 2 2 1 Core 2 | . . . 1 . . 1 Reactor . | . . . . . . . Propulsion 24 | 2 4 1 10 4 1 2 Treads 15 | 1 2 . 8 2 1 1 Leg . | . . . . . . . Wheel 8 | 1 2 1 2 2 . . Hover . | . . . . . . . Flight 1 | . . . . . . 1 Utility 16 | 2 3 . 6 3 . 2 Device 7 | 1 . . 3 1 . 2 Storage 4 | 1 3 . . . . . Processor . | . . . . . . . Hackware . | . . . . . . . Protection 5 | . . . 3 2 . . Artifact . | . . . . . . . Weapon 21 | 2 4 . 8 2 1 4 Energy Gun 6 | 1 1 . 2 1 . 1 Energy Cannon 2 | . . . 2 . . . Ballistic Gun 7 | 1 1 . 3 1 1 . Ballistic Cannon 2 | . 1 . . . . 1 Launcher 2 | . . . 1 . . 1 Special Weapon 2 | . 1 . . . . 1 Impact Weapon . | . . . . . . . Slashing Weapon . | . . . . . . . Piercing Weapon . | . . . . . . . Special Melee Weapon . | . . . . . . . Unidentified Prototypes 6 | . 1 . 4 . . 1 Parts Lost 13 | . 1 . 4 5 . 3 Power 3 | . 1 . 1 1 . . Propulsion 5 | . . . 1 3 . 1 Utility 2 | . . . 1 . . 1 Weapon 3 | . . . 1 1 . 1 Highest Loss Streak 3 | . 1 . 2 3 . 3 To Critical Strikes . | . . . . . . . Average Backups 23 | 5 20 24 24 24 25 24 Power 1 | . 1 1 1 1 2 2 Propulsion 5 | 3 7 5 4 4 5 4 Utility 9 | . 8 12 10 10 10 9 Weapon 5 | 1 3 5 6 6 7 6 Tool/Special . | . . . . . . . Unused Backups 33 | . 5 1 9 2 1 15 Power 4 | . . . 3 . . 1 Propulsion 7 | . 1 1 1 1 . 3 Utility 11 | . 1 . 3 . . 7 Weapon 10 | . 3 . 2 1 1 3 Tool/Special 1 | . . . . . . 1 Average Slot Usage (%) 98 | . 99 100 98 98 99 95 Engine 9 | . 13 14 5 11 11 2 Core 2 | . . . 5 . . 8 Treads 19 | . 14 14 22 21 22 21 Wheel 12 | . 14 14 10 10 11 11 Device 12 | . 14 14 10 11 11 10 Storage 12 | . 14 14 11 11 11 11 Protection 6 | . . . 10 10 11 10 Energy Gun 9 | . 14 14 4 4 10 9 Energy Cannon 1 | . . . 6 6 . . Ballistic Gun 6 | . 10 . 9 10 10 . Ballistic Cannon 4 | . 3 14 1 . . 7 Peak Build Rating 36 | 7 14 18 23 24 23 36 Average Rating 19 | 6 10 17 20 23 22 25 On Entrance 14 | . 7 14 18 22 23 17 Naked Turns . | . . . . . . . Heaviest Build 107 | 12 93 97 102 102 99 107 Greatest Support 46 | 16 16 16 20 46 16 16 Greatest Overweight (x) 10 | . 9 9 10 10 6 6 Average Overweight (x) 6 | . 5 7 9 7 5 5 Largest Inventory Capacity 25 | 8 25 25 25 25 25 25 Average Capacity 24 | 7 24 25 25 25 25 25 Most Carried 25 | 8 25 25 25 25 25 25 Average Carried 23 | 5 20 24 24 24 24 24 Final Capacity 25 | 8 25 25 25 25 25 25 Final Carried 25 | 8 25 25 25 25 25 19 Class Distribution -------------------- 91% | Mutant 8% | Scavenger-Mutant Dominant Class ---------------- Mutant | -10/Materials Mutant | -10/Mines Mutant | -9/Materials Mutant | -9/Storage Mutant | -9/Recycling Mutant | -9/Scraptown Resources | -11 -10 -10 -9 -9 -9 -9 ----------- Run | Yrd Mat Min Mat Sto Rec Scr Matter Collected 2583 | 288 332 166 791 375 383 248 Remotely . | . . . . . . . Salvage Created 4969 | 167 925 398 1893 765 492 329 Parts 253 | 14 48 15 102 46 13 15 Haulers Intercepted 9 | . 1 . 5 3 . . Recyclers Shooed 18 | . 6 2 5 2 3 . Parts Field Recycled . | . . . . . . . Retrieved Matter . | . . . . . . . Parts Self-Destructed . | . . . . . . . Prevented . | . . . . . . . Kills | -11 -10 -10 -9 -9 -9 -9 ------- Run | Yrd Mat Min Mat Sto Rec Scr Combat Hostiles Destroyed 63 | . 14 5 27 13 . 4 Guns 45 | . 14 3 20 6 . 2 Cannons 11 | . . 2 3 6 . . AOE 7 | . . . 4 1 . 2 Classes Destroyed 14 | 2 6 1 4 . . 1 Worker 9 | . 1 3 5 . . . Builder 3 | . . . 1 1 1 . Tunneler 7 | 5 . 2 . . . . Hauler 9 | . 1 . 5 3 . . Recycler 21 | 1 4 4 5 1 6 . Mechanic 1 | . . . 1 . . . Operator 4 | . 2 . 2 . . . Watcher 6 | . 3 . 3 . . . Swarmer 6 | . 6 . . . . . Grunt 37 | . 8 . 20 9 . . Duelist 2 | . . . 1 1 . . Sentry 9 | . . . 6 3 . . Elite 4 | . . . . . . 4 Assembled 5 | . . 5 . . . . Best Kill Streak 7 | 2 6 3 7 3 2 4 Combat Bots Only 4 | . 3 2 4 2 . 4 Max Kills in Single Turn 2 | 2 2 1 2 1 1 1 Gunslinging 1 | . 1 . . . . . Exploded 2 | . . . 2 1 . 1 Melee . | . . . . . . . Uniques/NPCs Destroyed . | . . . . . . . Combat | -11 -10 -10 -9 -9 -9 -9 -------- Run | Yrd Mat Min Mat Sto Rec Scr Hostile Shots Fired 298 | . 42 8 116 88 . 44 Missed 72 | . 11 2 26 19 . 14 Hits 226 | . 31 6 90 69 . 30 Melee 15 | . . 4 3 8 . . Projectile 211 | . 31 2 87 61 . 30 Critical Strikes 11 | . 2 . 2 6 . 1 Damage Taken 3470 | . 362 139 1211 1176 . 582 Core 467 | . 50 . 154 110 . 153 Absorbed by Shields . | . . . . . . . Core Remaining (%) 90 | 100 . 80 . . . . Volleys Fired 341 | 18 78 31 123 61 16 14 Largest 2 | 2 2 2 2 2 2 2 Hottest 109 | 70 100 89 108 98 79 109 Shots Fired 647 | 36 147 62 231 116 33 22 Gun 500 | 36 144 31 174 68 33 14 Cannon 136 | . 2 31 54 46 . 3 Launcher 10 | . . . 3 2 . 5 Special 1 | . 1 . . . . . Kinetic 312 | 18 72 31 115 56 17 3 Thermal 325 | 18 75 31 113 58 16 14 Explosive 10 | . . . 3 2 . 5 Electromagnetic . | . . . . . . . Robot Hit Streak 31 | 4 12 5 14 31 5 5 Robot Miss Streak 8 | 5 5 3 8 3 3 2 Penetration Max . | . . . . . . . Secondary Targets 5 | . 3 . 1 1 . . Max Gunslinging Chain 1 | . 1 . 1 1 . . Shots Hit Robots 397 | 14 88 34 143 87 18 13 Core Hits 173 | 10 44 16 57 27 9 10 Critical Kills 2 | . 1 . 1 . . . Critical Parts Destroyed . | . . . . . . . Critical Strikes 19 | 3 6 3 7 . . . Burn 16 | 3 5 2 6 . . . Meltdown 1 | . . . 1 . . . Destroy 1 | . 1 . . . . . Blast 1 | . . 1 . . . . Melee Attacks . | . . . . . . . Impact . | . . . . . . . Slashing . | . . . . . . . Piercing . | . . . . . . . Sneak Attacks . | . . . . . . . Combat Hostiles . | . . . . . . . Follow-up Attacks . | . . . . . . . Damage Inflicted 7356 | 170 970 646 2921 1922 323 404 Guns 4574 | 170 970 355 1818 768 323 170 Cannons 1957 | . . 291 714 900 . 52 Explosions 825 | . . . 389 254 . 182 Melee . | . . . . . . . Ramming . | . . . . . . . Kinetic 2587 | 70 343 291 1018 661 152 52 Thermal 3944 | 100 627 355 1514 1007 171 170 Explosive 825 | . . . 389 254 . 182 Electromagnetic . | . . . . . . . Impact . | . . . . . . . Slashing . | . . . . . . . Piercing . | . . . . . . . Highest Corruption 8 | . . . 8 8 8 8 Average Corruption 6 | . . . 5 8 8 8 Corruption Purged . | . . . . . . . Corruption Blocked . | . . . . . . . Effects 117 | . . . 50 23 44 . Message Errors 26 | . . . 9 4 13 . Matter Fused 28 | . . . 14 7 7 . Heat Flow Errors 14 | . . . 4 2 8 . Energy Discharges 11 | . . . 4 2 5 . Parts Rejected 1 | . . . 1 . . . Data Loss (minor) 23 | . . . 12 2 9 . Data Loss (major) 4 | . . . 1 2 1 . Misfires 4 | . . . 1 2 1 . Alerts 1 | . . . 1 . . . Weapon Failures 5 | . . . 3 2 . . Overload Shots . | . . . . . . . Overflow Damage 69 | . . 16 35 17 . 1 Projectiles 69 | . . 16 35 17 . 1 Explosions . | . . . . . . . Melee . | . . . . . . . Knockbacks 6 | . . 6 . . . . Impact . | . . . . . . . Kinetic 6 | . . 6 . . . . Secondary . | . . . . . . . Self-Inflicted Damage 31 | . . . 31 . . . Shots 2 | . . . 2 . . . Rammed . | . . . . . . . Targets Rammed . | . . . . . . . Kicked . | . . . . . . . Crushed . | . . . . . . . Highest Temperature 472 | 130 169 135 298 167 248 472 Average Temperature 71 | 59 46 43 85 47 73 194 Received Heat Transfer 1170 | . 189 . 534 447 . . Effects 5 | . . . 1 . . 4 Shutdowns 1 | . . . . . . 1 Energy Bleed 2 | . . . 1 . . 1 Damage (major) 2 | . . . . . . 2 Siege Activations . | . . . . . . . Martial Activations . | . . . . . . . Shielding Activations . | . . . . . . . Robots Disrupted . | . . . . . . . Combat Hostiles . | . . . . . . . Robots Corrupted . | . . . . . . . Combat Hostiles . | . . . . . . . Parts Fried . | . . . . . . . Impact Corruptions . | . . . . . . . Robots Melted 1 | . . . 1 . . . Combat Hostiles . | . . . . . . . Parts Melted 17 | 3 7 . 5 1 . 1 Heat Transferred 9216 | 518 2183 925 3441 1554 370 225 Parts Sabotaged . | . . . . . . . Parts Stolen . | . . . . . . . Parts Stripped . | . . . . . . . Power Chain Reactions . | . . . . . . . Alert | -11 -10 -10 -9 -9 -9 -9 ------- Run | Yrd Mat Min Mat Sto Rec Scr Maximum Alert Level 1 | . . . 1 1 . . Low Security (%) 81 | 100 100 100 54 39 100 . Level 1 18 | . . . 45 60 . . Level 2 . | . . . . . . . Level 3 . | . . . . . . . Level 4 . | . . . . . . . Level 5 . | . . . . . . . High Security . | . . . . . . . Max Security . | . . . . . . . Peak Influence 393 | 10 181 15 393 293 116 . Initial 161 | . . . . 161 74 . Average 84 | 1 41 . 168 214 48 . Influence Increases 2357 | 30 486 47 992 390 412 . Destroy 0b10 Robot/C 1200 | . 280 . 580 260 80 . Destroy 0b10 Robot/NC 295 | 30 50 45 110 25 35 . Destroy Leader 290 | . 68 . 156 66 . . Allied During Kill 18 | . . . 6 . 12 . Successful Hack 27 | . 11 . 1 . 15 . Select Force Hacks 390 | . 60 . 60 . 270 . Disable Machine 15 | . . . . 15 . . Destroy Structure 62 | . 2 2 34 24 . . Lose Combat Pursuer 60 | . 15 . 45 . . . Influence Decreases 2357 | 30 486 47 609 582 567 36 Entered New Map 375 | . . . . 222 117 36 Time Decay 1803 | 30 397 47 569 310 450 . Lost Part 100 | . 10 . 40 50 . . Purge Threat 79 | . 79 . . . . . Squads Dispatched 13 | . 3 . 8 2 . . Investigation 6 | . 2 . 4 . . . Extermination . | . . . . . . . Reinforcement 5 | . 1 . 4 . . . Assault 2 | . . . . 2 . . Garrison . | . . . . . . . Intercept . | . . . . . . . Searches Triggered . | . . . . . . . Construction Impeded . | . . . . . . . Haulers Reinforced . | . . . . . . . Active Scanning Responses . | . . . . . . . Cargo Convoy Interrupts . | . . . . . . . Stealth | -11 -10 -10 -9 -9 -9 -9 --------- Run | Yrd Mat Min Mat Sto Rec Scr Distress Signals 8 | . 4 1 3 . . . Communications Jammed . | . . . . . . . Distress Signals . | . . . . . . . Times Spotted 97 | . 28 8 40 13 2 6 Peak Tracking Total 8 | . 4 4 5 4 . 8 Tactical Retreats 5 | . 1 1 3 . . . Traps | -11 -10 -10 -9 -9 -9 -9 ------- Run | Yrd Mat Min Mat Sto Rec Scr Traps Triggered 5 | . . . 3 2 . . Indirectly . | . . . . . . . Trap Hack Attempts . | . . . . . . . Triggered . | . . . . . . . Disarmed . | . . . . . . . Reprogrammed . | . . . . . . . Reused . | . . . . . . . Traps Extracted . | . . . . . . . Installed . | . . . . . . . Triggered . | . . . . . . . Machines | -11 -10 -10 -9 -9 -9 -9 ---------- Run | Yrd Mat Min Mat Sto Rec Scr Machines Disabled 6 | . . . . 1 . 5 Max in Single Turn 1 | . . . . 1 . 1 Machines Repaired . | . . . . . . . Machines Dismantled . | . . . . . . . Machines Sabotaged . | . . . . . . . Overloaded Fab Kills . | . . . . . . . Hacking | -11 -10 -10 -9 -9 -9 -9 --------- Run | Yrd Mat Min Mat Sto Rec Scr Machines Accessed 35 | . 8 . 6 2 15 4 Terminals 17 | . 6 . 3 2 6 . Fabricators . | . . . . . . . Repair Stations . | . . . . . . . Recycling Units 13 | . 2 . 2 . 9 . Scanalyzers 1 | . . . 1 . . . Garrison Access . | . . . . . . . Total Hacks 88 | . 18 . 21 3 33 13 Successful 59 | . 12 . 12 1 21 13 Failed 29 | . 6 . 9 2 12 . Catastrophic 5 | . 1 . . 1 3 . Database Lockouts . | . . . . . . . Manual 47 | . 14 . 8 3 22 . Terminals 37 | . 14 . 6 3 14 . Fabricators . | . . . . . . . Repair Stations . | . . . . . . . Recycling Units 29 | . 4 . 6 . 19 . Scanalyzers 9 | . . . 9 . . . Garrison Access . | . . . . . . . Terminal Hacks 20 | . 4 . . . 3 13 Record 7 | . . . . . . 7 Robot Analysis 6 | . . . . . 1 5 Alert Level 1 | . 1 . . . . . Unreport Threat 1 | . 1 . . . . . Locate Traps 1 | . 1 . . . . . Hauler Manifests 1 | . 1 . . . . . Zone Layout 2 | . . . . . 2 . Proto ID Catalog 1 | . . . . . . 1 Fabricator Hacks . | . . . . . . . Repair Station Hacks . | . . . . . . . Recycling Unit Hacks 10 | . 2 . 1 . 7 . Retrieve Components 10 | . 2 . 1 . 7 . Scanalyzer 8 | . . . 8 . . . Insert Component 4 | . . . 4 . . . Analyze 4 | . . . 4 . . . Garrison Access Hacks . | . . . . . . . Unauthorized Hacks 21 | . 6 . 3 1 11 . Terminals 8 | . 4 . 1 1 2 . Assimilate 2 | . 2 . . . . . Botnet 5 | . 1 . 1 1 2 . Operators 1 | . 1 . . . . . Fabricators . | . . . . . . . Repair Stations . | . . . . . . . Recycling Units 13 | . 2 . 2 . 9 . Tunnel 13 | . 2 . 2 . 9 . Scanalyzers . | . . . . . . . Garrison Access . | . . . . . . . Data Cores Recovered . | . . . . . . . Used . | . . . . . . . Hacking Detections 20 | . 6 . 4 2 8 . Full Trace Events 6 | . . . 2 . 4 . Feedback Events 1 | . . . 1 . . . Corruption 1 | . . . 1 . . . Feedback Blocked . | . . . . . . . Robot Schematics Acquired . | . . . . . . . Robots Built . | . . . . . . . Authchips . | . . . . . . . Time . | . . . . . . . Total Robot Build Rating . | . . . . . . . Part Schematics Acquired 3 | . . . 3 . . . Parts Built . | . . . . . . . Authchips . | . . . . . . . Time . | . . . . . . . Total Part Build Rating . | . . . . . . . Parts Repaired . | . . . . . . . Time . | . . . . . . . Parts Recycled . | . . . . . . . Recycled Matter . | . . . . . . . Retrieved Matter . | . . . . . . . Retrieved Components 31 | . 2 . 1 . 28 . Parts Scanalyzed 4 | . . . 4 . . . Part Schematics Acquired 3 | . . . 3 . . . Parts Damaged . | . . . . . . . Bothacking | -11 -10 -10 -9 -9 -9 -9 ------------ Run | Yrd Mat Min Mat Sto Rec Scr Used RIF Installer . | . . . . . . . Robots Hacked . | . . . . . . . Non-combat . | . . . . . . . Combat . | . . . . . . . Robot Hacks Applied . | . . . . . . . Relay Couplers Released . | . . . . . . . Fabnet Peak Effective % . | . . . . . . . Robots Rewired . | . . . . . . . Allies Hacked . | . . . . . . . Hacks Repelled . | . . . . . . . Allies | -11 -10 -10 -9 -9 -9 -9 -------- Run | Yrd Mat Min Mat Sto Rec Scr Total Allies 6 | . 1 3 . 2 . . Largest Group 3 | . 1 3 3 2 2 2 Highest-Rated Group 62 | . 10 40 40 62 62 62 Highest-Rated Ally 31 | . 10 16 16 31 31 31 Total Orders . | . . . . . . . Ally Attacks 51 | . . 2 19 . 7 23 Total Damage 621 | . . 33 174 . 124 290 Kills 9 | . . . 2 . 4 3 Allies Corrupted . | . . . . . . . Allies Melted . | . . . . . . . Intel | -11 -10 -10 -9 -9 -9 -9 ------- Run | Yrd Mat Min Mat Sto Rec Scr Active Infowar (turns) 8106 | 97 1791 1481 1368 230 1419 1720 Seismic 8106 | 97 1791 1481 1368 230 1419 1720 Robot Analysis Total 6 | . . . . . 1 5 Derelict Logs Recovered 2 | . . 2 . . . . Drone Launches . | . . . . . . . Drone Recoveries . | . . . . . . . Exploration | -11 -10 -10 -9 -9 -9 -9 ------------- Run | Yrd Mat Min Mat Sto Rec Scr Turns Passed 9474 | 216 1791 1481 2147 693 1419 1727 Spaces Moved 3985 | 148 820 558 663 195 720 881 Core 3 | 3 . . . . . . Treads 35 | . . . 31 4 . . Legs . | . . . . . . . Wheels 3947 | 145 820 558 632 191 720 881 Hover . | . . . . . . . Flight . | . . . . . . . Fastest Speed 50 | 50 100 175 215 190 175 175 Average Speed 193 | 98 177 202 234 209 189 188 Slowest Speed 480 | 100 215 215 480 320 190 190 Overloaded Moves . | . . . . . . . Propulsion Burnouts . | . . . . . . . Robots Hopped . | . . . . . . . Potential Cave-ins . | . . . . . . . Cave-ins Triggered . | . . . . . . . Exploration Rate (%) 61 | 6 95 76 49 39 96 71 Regions Visited 6 Branch Regions 4 Pre-discovered Areas 14 | . 2 1 2 . 9 . Known Exits Taken 1 | . . . 1 . . . Unknown Exits Taken 5 | 1 1 1 . 1 1 . Scrap Searched 4 | . . 1 . . . 3 Spaces Dug 14 | . 1 . . 13 . . Terrain Destroyed 71 | . 1 2 25 22 . 21 Melee . | . . . . . . . Projectile 17 | . 1 2 5 9 . . AOE 54 | . . . 20 13 . 21 Terrain Rammed . | . . . . . . . Walls Destroyed . | . . . . . . . Machines Disabled . | . . . . . . . Actions | -11 -10 -10 -9 -9 -9 -9 --------- Run | Yrd Mat Min Mat Sto Rec Scr Total 5124 | 181 1025 846 1036 361 747 928 Wait 556 | 1 71 252 156 70 1 5 Move 3979 | 147 819 557 662 194 719 881 Hop . | . . . . . . . Pick Up 67 | 8 27 1 20 9 . 2 Fast Attach 28 | 7 3 . 13 1 . 4 Attach 18 | . 1 . 5 6 1 5 Detach 3 | . . . . . 2 1 Swap 55 | . 9 2 21 14 3 6 Drop 77 | . 17 3 36 6 5 10 Fire 341 | 18 78 31 123 61 16 14 Melee . | . . . . . . . Ram . | . . . . . . . Kick . | . . . . . . . Crush . | . . . . . . . Escape Stasis . | . . . . . . . Rewire . | . . . . . . . Trap . | . . . . . . . Miscellaneous . | . . . . . . . Route ------- -11/Scrapyard -10/Materials (discovered 5 exits: *Mat x3 / *Min x2) -10/Mines (discovered 2 exits: *Mat x2) -9/Materials (discovered 3 exits: [*Mat] / [*Min] / *Sto) -9/Storage -9/Recycling (discovered 2 exits: [*Fac] / *Scr) -9/Scraptown History --------- Turn | Location | Event 15 | -11/Scrapyard | Discovered new exit (range 15) 217 | -11/Scrapyard | Entered Materials 241 | -10/Materials | Discovered new exit (range 15) 305 | -10/Materials | Build established: Mutant 468 | -10/Materials | Discovered new exit (range 13) 920 | -10/Materials | Discovered new exit (range 15) 1020 | -10/Materials | Discovered new exit (range 5) 1778 | -10/Materials | Discovered new exit (range 3) 2008 | -10/Materials | Entered Mines 2009 | -10/Mines | Assembled infested the area 2014 | -10/Mines | Assisted by a Guerilla fighting off Assembled 2048 | -10/Mines | Met a Derelict bent on vengeance 2336 | -10/Mines | Learned Materials emergency access door positions 2836 | -10/Mines | Assisted by bots powering up and referring to "LRC-V3" 2876 | -10/Mines | Learned location of Storage (-9) 2880 | -10/Mines | Discovered new exit (range 6) 2944 | -10/Mines | Discovered new exit (range 9) 3489 | -10/Mines | Entered Materials 3489 | -9/Materials | Accompanied by 3 allies 3489 | -9/Materials | Evolved 2 slots: Propulsion x1, Utility x1 3490 | -9/Materials | Identified exit to Storage 4560 | -9/Materials | Discovered new exit (range 11) 5340 | -9/Materials | Discovered new exit (range 14) 5484 | -9/Materials | Build established: Scavenger-Mutant 5636 | -9/Materials | Entered Storage 5731 | -9/Storage | Core integrity fell below 50% 5898 | -9/Storage | Build established: Mutant 6077 | -9/Storage | Lost 3 parts (2n1w) 6272 | -9/Storage | Met a pair of Derelict thieves 6324 | -9/Storage | Used back door to open Recycling access 6324 | -9/Storage | Discovered new exit (range 4) 6329 | -9/Storage | Entered Recycling 6329 | -9/Recycling | Accompanied by 2 allies 6925 | -9/Recycling | Discovered new exit (range 8) 6950 | -9/Recycling | Scanned before Scraplab entrance 7730 | -9/Recycling | Entered Scraplab 7744 | -9/Recycling | Discovered new exit (range 3) 7748 | -9/Recycling | Entered Scraptown 7748 | -9/Scraptown | Accompanied by 2 allies 7752 | -9/Scraptown | System corruption cleaned by C-Scrubber 8123 | -9/Scraptown | Heard Great Nut preacher, LISTEN AND RECITE! 8253 | -9/Scraptown | Visited Awakened 8299 | -9/Scraptown | Visited CR-KLE's Repair Center 8337 | -9/Scraptown | Visited UFD Registry 8337 | -9/Scraptown | Registered with UFD as "Metaroller" 8369 | -9/Scraptown | Visited Assassins FH 8396 | -9/Scraptown | Visited Spacefarers 8432 | -9/Scraptown | Visited Cyclists 8445 | -9/Scraptown | Entered Cyclist Reading Room 8496 | -9/Scraptown | Visited TADAMA 8511 | -9/Scraptown | Visited The Evicted 8685 | -9/Scraptown | Visited Infowarlord's Domain 8718 | -9/Scraptown | Visited Scrapoid Pod Storage 8748 | -9/Scraptown | Visited Sword Containment 8786 | -9/Scraptown | Visited Science Guys 8877 | -9/Scraptown | Visited Scrap Suit Storage 8910 | -9/Scraptown | Visited Science Testing Area 8938 | -9/Scraptown | Visited Research Penetration Think Tank 8980 | -9/Scraptown | Visited Chapter 10 9008 | -9/Scraptown | Visited Analyses Database 9343 | -9/Scraptown | Found Scrapoid Pod 9368 | -9/Scraptown | Attacked by Scraptown defenders 9416 | -9/Scraptown | Core integrity fell below 20% 9450 | -9/Scraptown | Lost 3 parts (1n1u1w) 9475 | -9/Scraptown | Destroyed by XX-UQB(E) with Overtuned Barrage Gun Last Messages --------------- 09413_ 81-MQR(E) destroyed. 09414_ Imp. Treads destroyed. 09414_ Slug penetrates Wall. 09416_ Penetrated by Slug. 09416_ Med. Armor Plating destroyed. 09419_ Rocket Launcher destroyed. 09421_ RW-FSC(E) destroyed. 09434_ Overheating: Rocket Launcher damaged (-26). 09434_ Overheating: Fission Core damaged (-14). 09434_ KT-R6F(E) destroyed. 09434_ Machine disabled. 09439_ Power failure, Fission Core shutdown. 09443_ Acquired 149 matter. 09447_ Overheating: Energy bleed (-74). 09447_ Acquired 16 matter. 09462_ ANNOUNCEMENT: Triborg tracking relay activated. Stay clear or you only have yourself to blame! 09473_ XX-UQB(E): "We are one!" Map ----- +----------------------------------------------------+ | | | | | | | ?????????????????????????????????????????????????? | | ?????????????????????????????????????????????????? | | ?????????????????????????????????????????????????? | | ?????????????????????????????????????????????????? | | ?????????????????????????????????????????????????? | | ?????????????????????????????????????????????????? | | ?????????????????????????????????????????????????? | | ?????????????????????????????????????????????????? | | ?????????????????????????????????????????????????? | | ?????????????????????????????????????????????????? | | ?????????????????????????????????????????????????? | | ?????????????????????????????????????????????????? | | ?????????????????????????????????????????????????? | | ?????????????????????????###?????????????????????? | | ????????????????????????# ##????????????????????? | | ???????????????????????? #????????????????????? | | ???????????????????????? ????????????????????? | | ???????????????????????? ?????????????????????? | | ???????????????????????? ?????????????????????? | | ????????????????????????# E#?????????????????????? | | ????????????????????????# #############?????????? | | ????????????????????????# #"""""""""""#?????????? | | ????????????????????????#@ #""""" X """#?????????? | | ????????????????????????# #""" """"#?????????? | | ????????????????????????# #" "!""#?????????? | | ????????????????????????# #""" """"#?????????? | | ??##########????????????# #"""" ""#?????????? | | ??#""""""" #??????#"##??# #"" #?????????? | | ??#" = "#???#### X#### #"" "" " #?????????? | | ??#" = "#???# ## #"" "" "&#?????????? | | ??#" ! "#???# ## # "#?????????? | | ??#" "#???# ## #" #?????????? | | ??##### ####???#### # # # ##########?????????? | | ####### ##########" " # #??###???????????? | | """""" """""""""" ! #?? ???????????? | | %= *%= !%= #? """???????????? | | %[* [ !!! #? "#???? "??????? | | ==! [%=!= #" "## ??????? | | ! !=! #" " " #?????? | | ! " "#?????????? | | """""""""" """"""""" " #" "#?????????? | | """""""""""""""""""""" "" #" """????????? | | ##### ################"" #? "" ???????? | | ??? ??????????????#"" ############?????? | | ??? ?????????????#"" # #"""""#""#?????? | | ???"" ""?????????????#"" # !! !! !#?????? | | ? "" "???????????###"" "## #?????? | +----------------------------------------------------+ Best States ------------- Heat Dissipation 42 Energy Generation 18 Energy Capacity 310 Matter Stores 300 Matter Capacity 300 Sight Range 16 Terrain Scan Density 10 Armor Coverage 225 Evasion (%) 40 Recoil Reduction 2 Authchip Count 1 Item Schematics ----------------- Huge Storage Unit | -9/Materials | Scanalyzed Med. Storage Unit | -9/Materials | Scanalyzed Transport Network Coupler | -9/Materials | Scanalyzed Robot Schematics ------------------ None Fabricated ------------ Nothing Repaired ---------- Nothing Alien Tech Used ----------------- None Achievements -------------- None Challenges ------------ None Game ------ Seed BombardmentTerrorFacilitator Manual? 0 Play Time 00:52:02 Cumulative 132.5 hours Start 2025.09.09 @ 00:12:42 End 2025.09.11 @ 00:47:21 Sessions 3 Manual Loads 0 Difficulty Rogue Special Mode None Game No. 48 Rogue 42 Adventurer 0 Explorer 6 Win Type - Total 6 Types 4/0/1/1/0/0/0/0/0/0 Lore% 72 Gallery% 60 Achievement% 58 Wizard Run 0 Options --------- Layout 1 ASCII 0 Keyboard 0 Movement Mouse Keybinds 0 Fullscreen 2 Font 24/Smallcaps Map View 50x35 Zoom Use 0% Tactical HUD 1 Map Filters NONE Filters NONE Steam 1 RUN: ac4397d4-7b31-4ba0-8db3-328c550f5a7a